Cogmind - Beta 15 @@@ ROGUE MODE // 2025.08.04 @ 15:02:53 Player: Inverisimilidude Result: Destroyed by 7Z-8EF(h) with Bolt Gun Performance ------------- Evolutions (0) 0 Regions Visited (3) 600 Robots Destroyed (11) 55 Value Destroyed (242) 242 Prototype IDs (25) 500 Alien Tech Used (0) 0 Bonus (800) 800 TOTAL SCORE: 2197 Bonus ------- Registered with UFD 300 Met Optimus in HQ 500 Cogmind --------- Core Integrity 0/250 Matter 295/300 Energy 90/100 System Corruption 0% Temperature Cool (0) Movement Rolling (80) Location -7/Scraptown Parts ------- > --- POWER (1) -------- (None) > --- PROPULSION (2) --- Wheel > --- UTILITY (2) ------ Small Storage Unit A0-MCA's Component Scanner > --- WEAPON (2) ------- Companion Sword > --- INVENTORY (8) ---- Structural Scanner Seismic Detector Advanced Targeting Computer EM Shotgun Slug Cannon Rocket Launcher DRS Beacon (Ready) Peak State ------------ > --- POWER ------------ Improved Deuterium Engine > --- PROPULSION ------- Light Treads Compact Wheel > --- UTILITY ---------- Small Storage Unit A0-MCA's Component Scanner > --- WEAPON ----------- Makeshift Sword Companion Sword > --- INVENTORY -------- Wheel Structural Scanner Seismic Detector Advanced Targeting Computer EM Shotgun Slug Cannon Rocket Launcher DRS Beacon [Rating: 28] Favorites ----------- Power Ion Engine Engine Ion Engine Propulsion Compact Wheel Treads Light Treads Wheel Compact Wheel Utility Small Storage Unit Device Structural Scanner Storage Small Storage Unit Processor A0-MCA's Component Scanner Weapon Grenade Launcher Energy Gun EM Shotgun Ballistic Gun Makeshift Shrapnel Gun Launcher Grenade Launcher Slashing Weapon Companion Sword Build | -11 -10 -10 -7 ------- Run | Yrd Mat Sub Scr Slots Evolved . | . . . . Power . | . . . . Propulsion . | . . . . Utility . | . . . . Weapon . | . . . . Parts Attached 19 | 7 3 1 8 Power 2 | 1 . . 1 Engine 2 | 1 . . 1 Core . | . . . . Reactor . | . . . . Propulsion 4 | 2 . . 2 Treads 1 | . . . 1 Leg . | . . . . Wheel 3 | 2 . . 1 Hover . | . . . . Flight . | . . . . Utility 4 | 2 . . 2 Device 2 | 1 . . 1 Storage 1 | 1 . . . Processor 1 | . . . 1 Hackware . | . . . . Protection . | . . . . Artifact . | . . . . Weapon 9 | 2 3 1 3 Energy Gun 3 | 1 2 . . Energy Cannon . | . . . . Ballistic Gun 2 | 1 . . 1 Ballistic Cannon . | . . . . Launcher 2 | . 1 1 . Special Weapon . | . . . . Impact Weapon . | . . . . Slashing Weapon 2 | . . . 2 Piercing Weapon . | . . . . Special Melee Weapon . | . . . . Unidentified Prototypes . | . . . . Parts Lost 3 | . . . 3 Power 1 | . . . 1 Propulsion 2 | . . . 2 Utility . | . . . . Weapon . | . . . . Highest Loss Streak 3 | . . . 3 To Critical Strikes . | . . . . Average Backups 7 | 3 7 8 7 Power . | . 1 1 . Propulsion 2 | 1 4 4 1 Utility 1 | . . 1 2 Weapon 2 | . 1 2 2 Tool/Special . | . . . . Unused Backups 7 | . 1 . 6 Power 1 | . . . 1 Propulsion 2 | . . . 2 Utility 1 | . . . 1 Weapon 3 | . 1 . 2 Tool/Special . | . . . . Average Slot Usage (%) 98 | . 100 100 98 Engine 14 | . 14 14 14 Treads 10 | . . . 13 Wheel 17 | . 28 28 14 Device 8 | . 14 14 6 Storage 14 | . 14 14 14 Processor 5 | . . . 7 Energy Gun 3 | . 15 14 . Ballistic Gun 7 | . 3 . 9 Launcher 10 | . 8 14 9 Slashing Weapon 5 | . . . 6 Peak Build Rating 28 | 7 9 9 28 Average Rating 14 | 5 8 9 16 On Entrance 6 | . 7 9 9 Naked Turns . | . . . . Heaviest Build 21 | 14 18 18 21 Greatest Support 26 | 26 26 26 26 Greatest Overweight (x) 2 | 2 . . 1 Average Overweight (x) . | . . . . Largest Inventory Capacity 8 | 8 8 8 8 Average Capacity 7 | 7 8 8 8 Most Carried 8 | 6 8 8 8 Average Carried 7 | 3 7 8 7 Final Capacity 8 | 8 8 8 8 Final Carried 8 | 6 8 8 7 Class Distribution -------------------- 100% | Mutant Dominant Class ---------------- Mutant | -10/Materials Mutant | -10/Subcaves Mutant | -7/Scraptown Resources | -11 -10 -10 -7 ----------- Run | Yrd Mat Sub Scr Matter Collected 497 | 248 75 4 170 Remotely . | . . . . Salvage Created 389 | 35 294 60 . Parts 29 | 7 17 5 . Haulers Intercepted . | . . . . Recyclers Shooed . | . . . . Parts Field Recycled . | . . . . Retrieved Matter . | . . . . Parts Self-Destructed 7 | . . 7 . Prevented 1 | . . 1 . Kills | -11 -10 -10 -7 ------- Run | Yrd Mat Sub Scr Combat Hostiles Destroyed 6 | . 4 2 . Guns 1 | . . 1 . AOE 5 | . 4 1 . Classes Destroyed 6 | 1 3 2 . Worker 1 | . 1 . . Tunneler 3 | 2 1 . . Recycler 1 | . 1 . . Swarmer 1 | . . 1 . Grunt 4 | . 4 . . Sentry 1 | . . 1 . Best Kill Streak 4 | 2 4 1 . Combat Bots Only 2 | . 2 1 . Max Kills in Single Turn 3 | 1 3 1 . Gunslinging . | . . . . Exploded 2 | . 2 1 . Melee . | . . . . Uniques/NPCs Destroyed . | . . . . Combat | -11 -10 -10 -7 -------- Run | Yrd Mat Sub Scr Hostile Shots Fired 41 | . 1 . 40 Missed 3 | . . . 3 Hits 38 | . 1 . 37 Melee 5 | . . . 5 Projectile 33 | . 1 . 32 Critical Strikes 2 | . . . 2 Damage Taken 781 | . 10 49 722 Core 258 | . . 11 247 Absorbed by Shields . | . . . . Core Remaining (%) 100 | 100 . . . Volleys Fired 19 | 3 5 11 . Largest 2 | 2 2 2 . Hottest 78 | 70 78 78 . Shots Fired 24 | 6 6 12 . Gun 9 | 6 1 2 . Cannon . | . . . . Launcher 15 | . 5 10 . Special . | . . . . Kinetic 3 | 3 . . . Thermal 3 | 3 . . . Explosive 9 | . . 9 . Electromagnetic 9 | . 6 3 . Robot Hit Streak 4 | 1 3 4 . Robot Miss Streak 1 | 1 1 1 . Penetration Max . | . . . . Secondary Targets . | . . . . Shots Hit Robots 14 | 3 4 3 4 Core Hits 14 | 4 8 2 . Critical Kills . | . . . . Critical Parts Destroyed . | . . . . Critical Strikes 3 | 1 . . 2 Burn 1 | 1 . . . Melee Attacks 7 | . . . 7 Impact . | . . . . Slashing 7 | . . . 7 Piercing . | . . . . Sneak Attacks . | . . . . Combat Hostiles . | . . . . Follow-up Attacks . | . . . . Damage Inflicted 590 | 42 359 68 121 Guns 69 | 42 10 17 . Cannons . | . . . . Explosions 400 | . 349 51 . Melee 121 | . . . 121 Ramming . | . . . . Kinetic 17 | 17 . . . Thermal 119 | 25 94 . . Explosive 36 | . . 36 . Electromagnetic 297 | . 265 32 . Impact . | . . . . Slashing 121 | . . . 121 Piercing . | . . . . Highest Corruption . | . . . . Average Corruption . | . . . . Corruption Purged . | . . . . Corruption Blocked . | . . . . Overload Shots . | . . . . Overflow Damage . | . . . . Projectiles . | . . . . Explosions . | . . . . Melee . | . . . . Knockbacks . | . . . . Impact . | . . . . Kinetic . | . . . . Secondary . | . . . . Self-Inflicted Damage 49 | . . 49 . Shots 3 | . . 3 . Rammed . | . . . . Targets Rammed . | . . . . Kicked . | . . . . Crushed . | . . . . Highest Temperature 60 | 60 18 . . Average Temperature 25 | 29 12 . . Received Heat Transfer 90 | . 6 . 84 Siege Activations . | . . . . Martial Activations . | . . . . Shielding Activations . | . . . . Robots Disrupted . | . . . . Combat Hostiles . | . . . . Robots Corrupted . | . . . . Combat Hostiles . | . . . . Parts Fried . | . . . . Impact Corruptions . | . . . . Robots Melted . | . . . . Combat Hostiles . | . . . . Parts Melted . | . . . . Heat Transferred 348 | 148 200 . . Parts Sabotaged . | . . . . Parts Stolen . | . . . . Parts Stripped . | . . . . Power Chain Reactions 3 | . 3 . . Alert | -11 -10 -10 -7 ------- Run | Yrd Mat Sub Scr Maximum Alert Level . | . . . . Low Security (%) 100 | 100 100 . . Level 1 . | . . . . Level 2 . | . . . . Level 3 . | . . . . Level 4 . | . . . . Level 5 . | . . . . High Security . | . . . . Max Security . | . . . . Peak Influence 99 | 10 99 . . Initial . | . . . . Average 32 | 1 44 . . Influence Increases 189 | 10 139 40 . Destroy 0b10 Robot/C 120 | . 80 40 . Destroy 0b10 Robot/NC 25 | 10 15 . . Destroy Leader 20 | . 20 . . Disable Machine 15 | . 15 . . Destroy Structure 9 | . 9 . . Influence Decreases 189 | 10 80 99 . Entered New Map 29 | . . 29 . Time Decay 160 | 10 80 70 . Squads Dispatched 1 | . 1 . . Investigation . | . . . . Extermination . | . . . . Reinforcement 1 | . 1 . . Assault . | . . . . Garrison . | . . . . Intercept . | . . . . Searches Triggered . | . . . . Construction Impeded . | . . . . Haulers Reinforced . | . . . . Active Scanning Responses . | . . . . Cargo Convoy Interrupts . | . . . . Stealth | -11 -10 -10 -7 --------- Run | Yrd Mat Sub Scr Distress Signals 2 | . 2 . . Communications Jammed . | . . . . Distress Signals . | . . . . Times Spotted 17 | . 9 1 7 Peak Tracking Total 7 | . 4 1 7 Tactical Retreats . | . . . . Traps | -11 -10 -10 -7 ------- Run | Yrd Mat Sub Scr Traps Triggered . | . . . . Indirectly . | . . . . Trap Hack Attempts . | . . . . Triggered . | . . . . Disarmed . | . . . . Reprogrammed . | . . . . Reused . | . . . . Traps Extracted . | . . . . Installed . | . . . . Triggered . | . . . . Machines | -11 -10 -10 -7 ---------- Run | Yrd Mat Sub Scr Machines Disabled 1 | . 1 . . Max in Single Turn 1 | . 1 . . Machines Repaired . | . . . . Machines Dismantled . | . . . . Machines Sabotaged . | . . . . Overloaded Fab Kills . | . . . . Hacking | -11 -10 -10 -7 --------- Run | Yrd Mat Sub Scr Machines Accessed 12 | . . 3 9 Terminals . | . . . . Fabricators . | . . . . Repair Stations . | . . . . Recycling Units . | . . . . Scanalyzers . | . . . . Garrison Access . | . . . . Total Hacks 42 | . . 5 37 Successful 42 | . . 5 37 Failed . | . . . . Catastrophic . | . . . . Database Lockouts . | . . . . Manual . | . . . . Terminals . | . . . . Fabricators . | . . . . Repair Stations . | . . . . Recycling Units . | . . . . Scanalyzers . | . . . . Garrison Access . | . . . . Terminal Hacks 42 | . . 5 37 Record 37 | . . 2 35 Open Door 2 | . . 1 1 Proto ID Catalog 2 | . . 1 1 Release Object 1 | . . 1 . Fabricator Hacks . | . . . . Repair Station Hacks . | . . . . Recycling Unit Hacks . | . . . . Scanalyzer . | . . . . Garrison Access Hacks . | . . . . Unauthorized Hacks . | . . . . Terminals . | . . . . Fabricators . | . . . . Repair Stations . | . . . . Recycling Units . | . . . . Scanalyzers . | . . . . Garrison Access . | . . . . Data Cores Recovered . | . . . . Used . | . . . . Hacking Detections . | . . . . Full Trace Events . | . . . . Feedback Events . | . . . . Feedback Blocked . | . . . . Robot Schematics Acquired . | . . . . Robots Built . | . . . . Authchips . | . . . . Time . | . . . . Total Robot Build Rating . | . . . . Part Schematics Acquired . | . . . . Parts Built . | . . . . Authchips . | . . . . Time . | . . . . Total Part Build Rating . | . . . . Parts Repaired . | . . . . Time . | . . . . Parts Recycled . | . . . . Recycled Matter . | . . . . Retrieved Matter . | . . . . Retrieved Components . | . . . . Parts Scanalyzed . | . . . . Part Schematics Acquired . | . . . . Parts Damaged . | . . . . Bothacking | -11 -10 -10 -7 ------------ Run | Yrd Mat Sub Scr Used RIF Installer . | . . . . Robots Hacked . | . . . . Non-combat . | . . . . Combat . | . . . . Robot Hacks Applied . | . . . . Relay Couplers Released . | . . . . Fabnet Peak Effective % . | . . . . Robots Rewired . | . . . . Allies Hacked . | . . . . Hacks Repelled . | . . . . Allies | -11 -10 -10 -7 -------- Run | Yrd Mat Sub Scr Total Allies . | . . . . Largest Group . | . . . . Highest-Rated Group . | . . . . Highest-Rated Ally . | . . . . Total Orders . | . . . . Ally Attacks . | . . . . Total Damage . | . . . . Kills . | . . . . Allies Corrupted . | . . . . Allies Melted . | . . . . Intel | -11 -10 -10 -7 ------- Run | Yrd Mat Sub Scr Active Infowar (turns) 2102 | 6 229 530 1337 Structural 1326 | . . . 1326 Seismic 776 | 6 229 530 11 Robot Analysis Total . | . . . . Derelict Logs Recovered 1 | . . 1 . Drone Launches . | . . . . Drone Recoveries . | . . . . Exploration | -11 -10 -10 -7 ------------- Run | Yrd Mat Sub Scr Turns Passed 3596 | 87 229 530 2750 Spaces Moved 2473 | 68 180 562 1663 Core 6 | 6 . . . Treads 1302 | . . . 1302 Legs . | . . . . Wheels 1165 | 62 180 562 361 Hover . | . . . . Flight . | . . . . Fastest Speed 50 | 50 90 90 90 Average Speed 130 | 91 90 90 149 Slowest Speed 160 | 150 90 90 160 Overloaded Moves . | . . . . Propulsion Burnouts . | . . . . Robots Hopped . | . . . . Potential Cave-ins . | . . . . Cave-ins Triggered . | . . . . Exploration Rate (%) 46 | 4 48 39 93 Regions Visited 3 Branch Regions 2 Pre-discovered Areas 3 | . . . 3 Known Exits Taken . | . . . . Unknown Exits Taken 3 | 1 1 1 . Scrap Searched 8 | . . . 8 Spaces Dug 6 | . . 5 1 Terrain Destroyed 54 | . 8 45 1 Melee 1 | . . . 1 Projectile . | . . . . AOE 53 | . 8 45 . Terrain Rammed . | . . . . Walls Destroyed . | . . . . Machines Disabled . | . . . . Actions | -11 -10 -10 -7 --------- Run | Yrd Mat Sub Scr Total 2810 | 83 240 573 1914 Wait 263 | . 47 . 216 Move 2470 | 67 179 561 1663 Hop . | . . . . Pick Up 17 | 6 3 . 8 Fast Attach 10 | 7 2 . 1 Attach 2 | . . . 2 Detach 1 | . . . 1 Swap 7 | . 1 1 5 Drop 14 | . 3 . 11 Fire 19 | 3 5 11 . Melee 7 | . . . 7 Ram . | . . . . Kick . | . . . . Crush . | . . . . Escape Stasis . | . . . . Rewire . | . . . . Trap . | . . . . Miscellaneous . | . . . . Route ------- -11/Scrapyard -10/Materials (discovered 3 exits: [*Mat] / [*Min] / *Sub) -10/Subcaves (discovered 2 exits: *Scr x2) -7/Scraptown (discovered 1 exit: [*Fac]) History --------- Turn | Location | Event 17 | -11/Scrapyard | Discovered new exit (range 15) 88 | -11/Scrapyard | Entered Materials 89 | -10/Materials | Met a group of wandering Federalists 179 | -10/Materials | Discovered new exit (range 9) 200 | -10/Materials | Lost 3 allies 296 | -10/Materials | Discovered new exit (range 14) 300 | -10/Materials | Build established: Mutant 305 | -10/Materials | Discovered new exit (range 6) 317 | -10/Materials | Entered Subcaves 318 | -10/Subcaves | Continued accompanying wandering Federalists (3) 318 | -10/Subcaves | Approached by a straggling Scientist 368 | -10/Subcaves | A swath of the cavern ceiling suddenly collapsed 389 | -10/Subcaves | Learned Materials stockpile data 472 | -10/Subcaves | Visited 4L-MR0's lab 599 | -10/Subcaves | Shifting Twisted Machinery released Battle Rifle 605 | -10/Subcaves | Shifting Twisted Machinery released Flamer 689 | -10/Subcaves | Shifting Twisted Machinery released Battle Rifle 712 | -10/Subcaves | Shifting Twisted Machinery released Sub. Monowheel 824 | -10/Subcaves | Scientist uncovered a shortcut to Scraptown 847 | -10/Subcaves | Entered Scraptown 1049 | -7/Scraptown | Heard Great Nut preacher, LISTEN AND RECITE! 1223 | -7/Scraptown | Discovered new exit (range 3) 1341 | -7/Scraptown | Visited Shadow of the Wyrm 1375 | -7/Scraptown | Visited Awakened 1405 | -7/Scraptown | Visited SPCMW 1732 | -7/Scraptown | Visited Junk Repository 1763 | -7/Scraptown | Visited Symbiants 1843 | -7/Scraptown | Visited UFD Registry 1843 | -7/Scraptown | Registered with UFD as "Flashmachine" 1860 | -7/Scraptown | Visited Artisan Demo Area 1961 | -7/Scraptown | Visited CR-KLE's Repair Center 2105 | -7/Scraptown | Visited Science Guys 2168 | -7/Scraptown | Visited A0-MCA Data Center 2177 | -7/Scraptown | Given a B+ rating by A0-MCA 2183 | -7/Scraptown | Found A0-MCA's Component Scanner 2324 | -7/Scraptown | Visited Cartography Club 2638 | -7/Scraptown | Visited Abandonware Association 2649 | -7/Scraptown | Learned abandonware demo "OVRCLOCK.EXE" 2660 | -7/Scraptown | Learned abandonware demo "REBOOT5.EXE" 2699 | -7/Scraptown | Visited Modified Component R&D 2764 | -7/Scraptown | Visited Sword Containment 2829 | -7/Scraptown | Visited Derelict Rescue Squad 2843 | -7/Scraptown | Found DRS Beacon 2878 | -7/Scraptown | Visited Curators Association 2942 | -7/Scraptown | Visited DA-N13 Charitable Foundation 2958 | -7/Scraptown | Found DCF Scrap (27 items) 3469 | -7/Scraptown | Met Optimus 3469 | -7/Scraptown | Accepted into 0bPrime 3569 | -7/Scraptown | Attacked by Scraptown defenders 3573 | -7/Scraptown | Learned location of Lower Caves (-7) 3573 | -7/Scraptown | Learned location of Hub_04(d) (-4) 3573 | -7/Scraptown | Learned 16 Factory zone layouts 3573 | -7/Scraptown | Learned 16 Research zone layouts 3573 | -7/Scraptown | Learned 4 Access zone layouts 3573 | -7/Scraptown | Learned 4 Recycling zone layouts 3573 | -7/Scraptown | Learned 16 Lower Caves zone layouts 3573 | -7/Scraptown | Learned 24 Upper Caves zone layouts 3573 | -7/Scraptown | Learned location of 1 exit from Factory 3573 | -7/Scraptown | Learned location of 2 exits from Proximity Caves 3586 | -7/Scraptown | Core integrity fell below 50% 3588 | -7/Scraptown | Core integrity fell below 20% 3597 | -7/Scraptown | Destroyed by 7Z-8EF(h) with Bolt Gun Last Messages --------------- Data stored: Proximity Caves entrances (x2). >>Record "ACCESS/TES=1" Testing entrance. Data stored: Testing entrances (x1). 03573_ Penetrated by Slug. 03573_ Slug penetrates Wall. 03573_ Penetrated by Slug. 03574_ Bolt penetrates Wall. 03576_ Penetrated by Slug. 03580_ Lgt. Treads destroyed. 03580_ SI-XKM(j) Ovr. Titanium Leg severed. 03583_ Penetrated by Slug. 03583_ Com. Wheel destroyed. 03583_ Slug penetrates Wall. 03583_ Penetrated by Slug. 03583_ Slug penetrates Wall. 03585_ Penetrated by Slug. 03595_ Bolt penetrates Wall. 03595_ Imp. Deuterium Engine destroyed. 03597_ Bolt penetrates Wall. Map ----- +----------------------------------------------------+ | | | | | | | | | ?????????????????????????????????????????????????? | | ?????????????????????????????????????????????????? | | ####?####????????????????????????????????????????? | | ####?####????????????????????????????????????????? | | """"?""##????????????????????????????????????????? | | ?? "##????????????????????????????????????????? | | """ "##????????????????????????????????????????? | | "" "##????????????????????????????????????????? | | " "##????????????????????????????????????????? | | "##????????????????????????????????????????? | | """"""##????????????????????????????????????????? | | ##????????????????????????????????????????? | | ##????????????????????????????????????????? | | ##????????????????????????????????????????? | | """######????????????????????????????????????????? | | ! "######????????????????????????????????????????? | | ""##????????????????????????????????????????????? | | """##????????????????????????????????????????????? | | """##????????????????????????????????????????????? | | """##???????????###########??????????????????????? | | #####???????????#" # # x #??????????????????????? | | ##########??????#" "" # #@#?###??????????????????? | | ##########???????# " ##### #???????????######## | | """"""""""???????# =" # # #?????#?????#""""""" | | """"""""""???????## ###" ## # #????" "?"""# " " | | """"""""""##??????# # #"# #????" " ?# | | """" """""##??????# ? #X"### #??"? " "?# "# #" | | """" """""##??????#?? #### ## #?#" " "?# "#X#" | | """" """""##????????? ?# #?# " " " # "###" | | """" """"##?????####### ######?# " # """"" | | ##?????# #?# ?# | | ##?????# #???"""""???# | | ###????####### ######????# #????###### # | | ####### #####??????##### ########### ########### # | | ##??????#"""" """"""""""" """"""""""" " | | ##??????#" | | ##??????#" | | ##??????#" | | ##??????#" | | ## ##???####" | | # ##???"""" """""""""""""""""""""""" | | # ##???"""" """""""""""""""""""""""" | | # ##???"""" ""###### ############## | | ##???"""" ""# ##??????? | | # #####"""" ""# X"#??????? | | # ###"#"""" ""# "" "" ##??????? | +----------------------------------------------------+ Best States ------------- Heat Dissipation 25 Energy Generation 16 Energy Capacity 290 Matter Stores 300 Matter Capacity 300 Sight Range 16 Terrain Scan Density 10 Evasion (%) 42 Recoil Reduction 1 Item Schematics ----------------- None Robot Schematics ------------------ None Fabricated ------------ Nothing Repaired ---------- Nothing Alien Tech Used ----------------- None Achievements -------------- None Challenges ------------ None Game ------ Seed TargetingGrenadeJets Manual? 0 Play Time 00:27:38 Cumulative 96.6 hours Start 2025.08.04 @ 12:09:46 End 2025.08.04 @ 15:02:53 Sessions 3 Manual Loads 0 Difficulty Rogue Special Mode None Game No. 120 Rogue 120 Adventurer 0 Explorer 0 Win Type - Total 0 Types 0/0/0/0/0/0/0/0/0/0 Lore% 60 Gallery% 45 Achievement% 42 Wizard Run 0 Options --------- Layout 1 ASCII 0 Keyboard 0 Movement Arrows Keybinds 0 Fullscreen 1 Font 24/Smallcaps Map View 50x35 Zoom Use 0% Tactical HUD 1 Map Filters NONE Filters NONE Steam 1 RUN: c2107b22-0523-4d25-9c83-4d36d85be622